Cogmind - Beta 15 @@@ ROGUE MODE // 2025.05.26 @ 20:05:17 Player: McSaucyNugget Result: Self-destructed Performance ------------- Evolutions (2) 1000 Regions Visited (4) 800 Robots Destroyed (62) 310 Value Destroyed (1531) 1531 Prototype IDs (3) 60 Alien Tech Used (0) 0 Bonus (57) 57 TOTAL SCORE: 3758 Bonus ------- Follower Combat Kills 57 Cogmind --------- Core Integrity 311/550 Matter 13/300 Energy 100/100 System Corruption 0% Temperature Cool (0) Movement Core (750) Ox14 Location -8/Materials Parts ------- > --- POWER (1) -------- (None) > --- PROPULSION (4) --- (None) > --- UTILITY (4) ------ Large Storage Unit Seismic Detector Advanced Targeting Computer Reactive Plating > --- WEAPON (2) ------- Advanced Assault Cannon Advanced Assault Cannon > --- INVENTORY (15) --- Advanced Heat Sink Signal Interpreter Terrain Scanner Heavy Armor Plating Reactive Plating Heavy Particle Cannon Heavy Particle Cannon Advanced Assault Cannon Precision Grenade Launcher Precision Grenade Launcher Heavy Mace Peak State ------------ > --- POWER ------------ Light Nuclear Core > --- PROPULSION ------- Light Treads Improved Treads Improved Treads Advanced Treads > --- UTILITY ---------- Large Storage Unit Seismic Detector Advanced Targeting Computer Reactive Plating > --- WEAPON ----------- Advanced Assault Cannon Advanced Assault Cannon > --- INVENTORY -------- Light Nuclear Core Signal Interpreter Terrain Scanner Heavy Armor Plating Reactive Plating Heavy Particle Cannon Heavy Particle Cannon Advanced Assault Cannon Advanced Assault Cannon Precision Grenade Launcher Precision Grenade Launcher Heavy Mace [Rating: 31] Favorites ----------- Power Heavy Ion Engine Engine Heavy Ion Engine Power Core Light Nuclear Core Propulsion Light Treads Treads Light Treads Wheel Wheel Utility Seismic Detector Device Seismic Detector Storage Small Storage Unit Processor Advanced Targeting Computer Protection Light Armor Plating Weapon Light Cannon Ballistic Gun Light Assault Rifle Ballistic Cannon Light Cannon Launcher Rocket Launcher Build | -11 -10 -10 -9 -8 ------- Run | Yrd Mat Min Mat Mat Slots Evolved 4 | . . . 2 2 Power . | . . . . . Propulsion 2 | . . . 1 1 Utility 2 | . . . 1 1 Weapon . | . . . . . Parts Attached 43 | 8 6 . 14 15 Power 4 | 1 1 . . 2 Engine 2 | 1 1 . . . Core 2 | . . . . 2 Reactor . | . . . . . Propulsion 10 | 4 . . 4 2 Treads 5 | 2 . . 2 1 Leg . | . . . . . Wheel 5 | 2 . . 2 1 Hover . | . . . . . Flight . | . . . . . Utility 11 | 1 3 . 3 4 Device 2 | . 1 . 1 . Storage 5 | 1 2 . 1 1 Processor 1 | . . . . 1 Hackware . | . . . . . Protection 3 | . . . 1 2 Artifact . | . . . . . Weapon 18 | 2 2 . 7 7 Energy Gun . | . . . . . Energy Cannon . | . . . . . Ballistic Gun 4 | 2 . . 2 . Ballistic Cannon 11 | . 2 . 4 5 Launcher 3 | . . . 1 2 Special Weapon . | . . . . . Impact Weapon . | . . . . . Slashing Weapon . | . . . . . Piercing Weapon . | . . . . . Special Melee Weapon . | . . . . . Unidentified Prototypes 3 | . 1 . 1 1 Parts Lost 10 | . . . . 10 Power 2 | . . . . 2 Propulsion 6 | . . . . 6 Utility 1 | . . . . 1 Weapon 1 | . . . . 1 Highest Loss Streak 3 | . . . . 3 To Critical Strikes . | . . . . . Average Backups 10 | 1 6 8 12 14 Power . | . . 1 . . Propulsion 1 | 1 1 . 1 1 Utility 2 | . 1 2 3 4 Weapon 5 | . 2 4 7 7 Tool/Special . | . . . . . Unused Backups 22 | . 1 1 5 15 Power 2 | . . . 1 1 Propulsion 2 | . 1 1 . . Utility 6 | . . . . 6 Weapon 12 | . . . 4 8 Tool/Special . | . . . . . Average Slot Usage (%) 94 | . 99 100 94 86 Engine 9 | . 14 14 11 1 Core 1 | . . . . 6 Treads 23 | . 28 28 19 19 Wheel 4 | . . . 8 6 Device 11 | . 13 14 11 9 Storage 11 | . 13 14 11 9 Processor 1 | . . . . 5 Protection 5 | . . . 10 10 Ballistic Gun 2 | . 6 . 1 . Ballistic Cannon 21 | . 21 28 20 17 Peak Build Rating 31 | 6 10 10 19 31 Average Rating 15 | 4 9 10 15 25 On Entrance 9 | . 6 10 10 19 Naked Turns . | . . . . . Heaviest Build 102 | 13 20 20 102 102 Greatest Support 88 | 40 40 40 63 88 Greatest Overweight (x) 15 | . . . 10 15 Average Overweight (x) 1 | . . . 2 2 Largest Inventory Capacity 25 | 8 25 8 25 25 Average Capacity 12 | 6 7 8 16 17 Most Carried 23 | 2 8 8 21 23 Average Carried 10 | 1 6 8 13 14 Final Capacity 25 | 8 8 8 25 15 Final Carried 21 | 2 8 8 21 12 Class Distribution -------------------- 100% | Mutant Dominant Class ---------------- Mutant | -10/Materials Mutant | -10/Mines Mutant | -9/Materials Mutant | -8/Materials Resources | -11 -10 -10 -9 -8 ----------- Run | Yrd Mat Min Mat Mat Matter Collected 1702 | 288 330 68 546 470 Remotely . | . . . . . Salvage Created 1649 | 59 317 50 530 693 Parts 108 | 2 17 7 33 49 Haulers Intercepted . | . . . . . Recyclers Shooed 3 | . . 1 2 . Parts Field Recycled . | . . . . . Retrieved Matter . | . . . . . Parts Self-Destructed . | . . . . . Prevented . | . . . . . Kills | -11 -10 -10 -9 -8 ------- Run | Yrd Mat Min Mat Mat Combat Hostiles Destroyed 41 | . 8 . 12 21 Cannons 27 | . 8 . 6 13 AOE 14 | . . . 6 8 Classes Destroyed 8 | 1 3 2 2 . Worker 6 | . . 2 2 2 Builder 3 | . . . 1 2 Tunneler 2 | . . 2 . . Recycler 8 | 1 1 . 3 3 Watcher 2 | . 1 . 1 . Swarmer 13 | . 3 . 6 4 Grunt 21 | . 5 . 1 15 Sentry 7 | . . . 5 2 Best Kill Streak 10 | 1 2 4 5 10 Combat Bots Only 7 | . 2 . 4 7 Max Kills in Single Turn 4 | 1 1 2 2 4 Gunslinging . | . . . . . Exploded 3 | . . . 2 3 Melee . | . . . . . Uniques/NPCs Destroyed . | . . . . . Combat | -11 -10 -10 -9 -8 -------- Run | Yrd Mat Min Mat Mat Hostile Shots Fired 202 | . 38 . 31 133 Missed 48 | . 7 . 8 33 Hits 154 | . 31 . 23 100 Projectile 154 | . 31 . 23 100 Critical Strikes 3 | . . . . 3 Damage Taken 2212 | . 287 . 336 1589 Core 297 | . 33 . 25 239 Absorbed by Shields . | . . . . . Ignored by Resistances 10 | . . . . 10 Core Remaining (%) 93 | 100 . 86 93 . Volleys Fired 130 | 2 32 8 34 54 Largest 2 | 2 2 2 2 2 Hottest 80 | 40 60 60 74 80 Shots Fired 238 | 4 64 17 63 90 Gun 4 | 4 . . . . Cannon 219 | . 64 17 59 79 Launcher 15 | . . . 4 11 Special . | . . . . . Kinetic 223 | 4 64 17 59 79 Thermal . | . . . . . Explosive 15 | . . . 4 11 Electromagnetic . | . . . . . Robot Hit Streak 10 | 3 8 3 7 10 Robot Miss Streak 5 | 1 5 2 4 4 Penetration Max . | . . . . . Secondary Targets . | . . . . . Shots Hit Robots 124 | 3 26 9 34 52 Core Hits 78 | 2 11 4 21 40 Critical Kills . | . . . . . Critical Parts Destroyed . | . . . . . Critical Strikes 4 | . . 1 1 2 Blast 4 | . . 1 1 2 Melee Attacks . | . . . . . Impact . | . . . . . Slashing . | . . . . . Piercing . | . . . . . Sneak Attacks . | . . . . . Combat Hostiles . | . . . . . Follow-up Attacks . | . . . . . Damage Inflicted 4038 | 33 466 184 1162 2193 Guns 33 | 33 . . . . Cannons 2601 | . 466 181 703 1251 Explosions 1394 | . . . 452 942 Melee . | . . . . . Ramming 10 | . . 3 7 . Kinetic 2634 | 33 466 181 703 1251 Thermal . | . . . . . Explosive 1394 | . . . 452 942 Electromagnetic . | . . . . . Impact . | . . . . . Slashing . | . . . . . Piercing . | . . . . . Highest Corruption 3 | . 2 2 3 . Average Corruption 2 | . 2 2 2 . Corruption Purged . | . . . . . Corruption Blocked . | . . . . . Effects 36 | . 9 8 19 . Message Errors 9 | . 3 3 3 . Matter Fused 13 | . 4 1 8 . Heat Flow Errors 4 | . 1 1 2 . Energy Discharges 3 | . . 1 2 . Parts Fused 1 | . 1 . . . Data Loss (minor) 1 | . . . 1 . Data Loss (major) 2 | . . . 2 . Misfires 1 | . . 1 . . Alerts 1 | . . 1 . . Weapon Failures 1 | . . . 1 . Overload Shots . | . . . . . Overflow Damage 108 | . . 15 47 46 Projectiles 61 | . . 15 7 39 Explosions 47 | . . . 40 7 Melee . | . . . . . Knockbacks 36 | . 4 3 9 20 Impact . | . . . . . Kinetic 33 | . 4 3 8 18 Secondary 3 | . . . 1 2 Self-Inflicted Damage 48 | . . . . 48 Shots 1 | . . . . 1 Rammed 5 | . 1 1 2 1 Targets Rammed 5 | . 1 1 2 1 Kicked . | . . . . . Crushed . | . . . . . Highest Temperature 329 | . 170 171 201 329 Average Temperature 61 | . 17 31 27 116 Received Heat Transfer 996 | . 54 . 78 864 Effects 5 | . . . . 5 Energy Bleed 2 | . . . . 2 Interference 2 | . . . . 2 Matter Decay 1 | . . . . 1 Siege Activations . | . . . . . Martial Activations . | . . . . . Shielding Activations . | . . . . . Robots Disrupted . | . . . . . Combat Hostiles . | . . . . . Robots Corrupted 1 | . . . 1 . Combat Hostiles . | . . . . . Parts Fried . | . . . . . Impact Corruptions 1 | . . . 1 . Robots Melted . | . . . . . Combat Hostiles . | . . . . . Parts Melted . | . . . . . Heat Transferred . | . . . . . Parts Sabotaged . | . . . . . Parts Stolen . | . . . . . Parts Stripped . | . . . . . Power Chain Reactions . | . . . . . Alert | -11 -10 -10 -9 -8 ------- Run | Yrd Mat Min Mat Mat Maximum Alert Level 1 | . . . . 1 Low Security (%) 97 | 100 100 100 100 88 Level 1 2 | . . . . 11 Level 2 . | . . . . . Level 3 . | . . . . . Level 4 . | . . . . . Level 5 . | . . . . . High Security . | . . . . . Max Security . | . . . . . Peak Influence 234 | 5 89 15 156 234 Initial 49 | . . 3 . 49 Average 60 | . 14 . 63 144 Influence Increases 1468 | 5 258 20 554 631 Destroy 0b10 Robot/C 880 | . 160 . 300 420 Destroy 0b10 Robot/NC 105 | 5 10 20 35 35 Destroy Leader 204 | . 42 . 82 80 Allied During Kill 41 | . . . 39 2 Successful Hack 10 | . . . 10 . Select Force Hacks 60 | . 30 . 30 . Disable Machine 60 | . 15 . 15 30 Destroy Structure 108 | . 1 . 43 64 Influence Decreases 1312 | 5 250 28 437 592 Entered New Map 73 | . . 5 . 68 Time Decay 1046 | 5 177 23 437 404 Lost Part 100 | . . . . 100 Lost Ally 20 | . . . . 20 Purge Threat 73 | . 73 . . . Squads Dispatched 5 | . 2 . 1 2 Investigation 3 | . 2 . 1 . Extermination . | . . . . . Reinforcement 2 | . . . . 2 Assault . | . . . . . Garrison . | . . . . . Intercept . | . . . . . Searches Triggered . | . . . . . Construction Impeded 1 | . . . . 1 Haulers Reinforced . | . . . . . Active Scanning Responses . | . . . . . Cargo Convoy Interrupts . | . . . . . Stealth | -11 -10 -10 -9 -8 --------- Run | Yrd Mat Min Mat Mat Distress Signals 4 | . 1 . . 3 Communications Jammed . | . . . . . Distress Signals . | . . . . . Times Spotted 53 | . 9 . 12 32 Peak Tracking Total 6 | . 3 . 5 6 Tactical Retreats . | . . . . . Traps | -11 -10 -10 -9 -8 ------- Run | Yrd Mat Min Mat Mat Traps Triggered 4 | . 2 . 2 . Indirectly . | . . . . . Trap Hack Attempts . | . . . . . Triggered . | . . . . . Disarmed . | . . . . . Reprogrammed . | . . . . . Reused . | . . . . . Traps Extracted . | . . . . . Installed . | . . . . . Triggered . | . . . . . Machines | -11 -10 -10 -9 -8 ---------- Run | Yrd Mat Min Mat Mat Machines Disabled 4 | . 1 . 1 2 Max in Single Turn 1 | . 1 . 1 1 Machines Repaired . | . . . . . Machines Dismantled . | . . . . . Machines Sabotaged . | . . . . . Overloaded Fab Kills . | . . . . . Hacking | -11 -10 -10 -9 -8 --------- Run | Yrd Mat Min Mat Mat Machines Accessed 5 | . 3 . 2 . Terminals 3 | . 2 . 1 . Fabricators . | . . . . . Repair Stations . | . . . . . Recycling Units 2 | . 1 . 1 . Scanalyzers . | . . . . . Garrison Access . | . . . . . Total Hacks 7 | . 3 . 4 . Successful 6 | . 3 . 3 . Failed 1 | . . . 1 . Catastrophic . | . . . . . Database Lockouts . | . . . . . Manual 4 | . 1 . 3 . Terminals 4 | . 2 . 2 . Fabricators . | . . . . . Repair Stations . | . . . . . Recycling Units 3 | . 1 . 2 . Scanalyzers . | . . . . . Garrison Access . | . . . . . Terminal Hacks 3 | . 2 . 1 . Unreport Threat 1 | . 1 . . . Locate Traps 1 | . 1 . . . Zone Layout 1 | . . . 1 . Fabricator Hacks . | . . . . . Repair Station Hacks . | . . . . . Recycling Unit Hacks . | . . . . . Scanalyzer . | . . . . . Garrison Access Hacks . | . . . . . Unauthorized Hacks 3 | . 1 . 2 . Terminals 1 | . . . 1 . Botnet 1 | . . . 1 . Fabricators . | . . . . . Repair Stations . | . . . . . Recycling Units 2 | . 1 . 1 . Tunnel 2 | . 1 . 1 . Scanalyzers . | . . . . . Garrison Access . | . . . . . Data Cores Recovered . | . . . . . Used . | . . . . . Hacking Detections 1 | . . . 1 . Full Trace Events . | . . . . . Feedback Events . | . . . . . Feedback Blocked . | . . . . . Robot Schematics Acquired . | . . . . . Robots Built . | . . . . . Authchips . | . . . . . Time . | . . . . . Total Robot Build Rating . | . . . . . Part Schematics Acquired . | . . . . . Parts Built . | . . . . . Authchips . | . . . . . Time . | . . . . . Total Part Build Rating . | . . . . . Parts Repaired . | . . . . . Time . | . . . . . Parts Recycled . | . . . . . Recycled Matter . | . . . . . Retrieved Matter . | . . . . . Retrieved Components . | . . . . . Parts Scanalyzed . | . . . . . Part Schematics Acquired . | . . . . . Parts Damaged . | . . . . . Bothacking | -11 -10 -10 -9 -8 ------------ Run | Yrd Mat Min Mat Mat Used RIF Installer . | . . . . . Robots Hacked . | . . . . . Non-combat . | . . . . . Combat . | . . . . . Robot Hacks Applied . | . . . . . Relay Couplers Released . | . . . . . Fabnet Peak Effective % . | . . . . . Robots Rewired . | . . . . . Allies Hacked . | . . . . . Hacks Repelled . | . . . . . Allies | -11 -10 -10 -9 -8 -------- Run | Yrd Mat Min Mat Mat Total Allies 3 | . . 3 . . Largest Group 3 | . . 3 3 1 Highest-Rated Group 40 | . . 40 40 15 Highest-Rated Ally 16 | . . 16 16 15 Total Orders . | . . . . . Ally Attacks 24 | . . . 19 5 Total Damage 259 | . . . 194 65 Kills 3 | . . . 3 . Allies Corrupted 1 | . . . 1 . Allies Melted . | . . . . . Intel | -11 -10 -10 -9 -8 ------- Run | Yrd Mat Min Mat Mat Active Infowar (turns) 3472 | . 975 535 1245 717 Seismic 3472 | . 975 535 1245 717 Robot Analysis Total . | . . . . . Derelict Logs Recovered 1 | . . 1 . . Drone Launches . | . . . . . Drone Recoveries . | . . . . . Exploration | -11 -10 -10 -9 -8 ------------- Run | Yrd Mat Min Mat Mat Turns Passed 3874 | 144 988 535 1245 962 Spaces Moved 2018 | 81 524 318 668 427 Core 24 | 2 . . . 22 Treads 1482 | 76 524 318 395 169 Legs . | . . . . . Wheels 512 | 3 . . 273 236 Hover . | . . . . . Flight . | . . . . . Fastest Speed 50 | 50 160 160 155 110 Average Speed 163 | 155 160 160 160 177 Slowest Speed 800 | 160 160 160 230 800 Overloaded Moves . | . . . . . Propulsion Burnouts . | . . . . . Robots Hopped . | . . . . . Potential Cave-ins . | . . . . . Cave-ins Triggered . | . . . . . Exploration Rate (%) 44 | 6 72 71 43 31 Regions Visited 4 Branch Regions 1 Pre-discovered Areas 2 | . 1 . 1 . Known Exits Taken . | . . . . . Unknown Exits Taken 4 | 1 1 1 1 . Scrap Searched . | . . . . . Spaces Dug . | . . . . . Terrain Destroyed 135 | . . . 44 91 Melee . | . . . . . Projectile 34 | . . . 12 22 AOE 101 | . . . 32 69 Terrain Rammed . | . . . . . Walls Destroyed . | . . . . . Machines Disabled . | . . . . . Actions | -11 -10 -10 -9 -8 --------- Run | Yrd Mat Min Mat Mat Total 2348 | 92 608 328 778 542 Wait 69 | . 35 . 26 8 Move 2014 | 80 523 317 667 427 Hop . | . . . . . Pick Up 43 | 2 9 1 20 11 Fast Attach 17 | 6 2 . 4 5 Attach 8 | . . . 1 7 Detach 6 | . . . 2 4 Swap 27 | 2 4 . 11 10 Drop 29 | . 2 1 11 15 Fire 130 | 2 32 8 34 54 Melee . | . . . . . Ram . | . . . . . Kick . | . . . . . Crush 5 | . 1 1 2 1 Escape Stasis . | . . . . . Rewire . | . . . . . Trap . | . . . . . Miscellaneous . | . . . . . Route ------- -11/Scrapyard -10/Materials (discovered 2 exits: *Mat / [*Min]) -10/Mines (discovered 4 exits: *Mat x2 / [*Exi] / *Sub) -9/Materials -8/Materials History --------- Turn | Location | Event 35 | -11/Scrapyard | Discovered new exit (range 15) 145 | -11/Scrapyard | Entered Materials 315 | -10/Materials | Build established: Mutant 454 | -10/Materials | Discovered new exit (range 7) 576 | -10/Materials | Discovered new exit (range 12) 1133 | -10/Materials | Entered Mines 1142 | -10/Mines | Met a Derelict bent on vengeance 1239 | -10/Mines | Deemed a non-threat by the Exiles lab entrance 1241 | -10/Mines | Discovered new exit (range 5) 1364 | -10/Mines | Discovered new exit (range 9) 1367 | -10/Mines | Identified exit to Subcaves 1373 | -10/Mines | Received a Rocket Launcher from a helpful Derelict 1585 | -10/Mines | Discovered new exit (range 16) 1626 | -10/Mines | Assisted by bots powering up and referring to "LRC-V3" 1668 | -10/Mines | Entered Materials 1668 | -9/Materials | Accompanied by 3 allies 1668 | -9/Materials | Evolved 2 slots: Propulsion x1, Utility x1 2635 | -9/Materials | Discovered new exit (range 4) 2913 | -9/Materials | Entered another Materials area 2913 | -8/Materials | Accompanied by 1 ally 2913 | -8/Materials | Evolved 2 slots: Propulsion x1, Utility x1 3135 | -8/Materials | Destroyed 7 combat bots 3614 | -8/Materials | Lost 3 parts (1p2n) 3717 | -8/Materials | Lost 3 parts (2n1w) 3875 | -8/Materials | Self-destructed Last Messages --------------- 03695_ R-06 Scavenger collects Aluminum Leg. 03698_ R-06 Scavenger collects Imp. Heat Sink. 03699_ U-05 Engineer builds a Wall. 03705_ K-01 Serf collects debris. 03714_ Acquired 2 matter. 03716_ K-01 Serf collects debris. 03722_ Acquired 7 matter. 03728_ K-01 Serf collects debris. 03730_ Acquired 16 matter. 03731_ K-01 Serf collects debris. 03738_ Acquired 6 matter. 03740_ K-01 Serf collects debris. 03746_ Acquired 1 matter. 03748_ K-01 Serf collects debris. 03834_ Pressure Siphon disabled. 03845_ R-06 Scavenger knocked back. 03846_ U-05 Engineer builds a Wall. 03848_ Destroyed Com. Wheel. 03848_ R-06 Scavenger destroyed. 03866_ Lgt. Nuclear Core destroyed. Map ----- +----------------------------------------------------+ | | | | | | | | | | | | | | | | | | | ????????????????######???????????????????????????? | | ##??????????? ! #???????????????????????????? | | #??????????#""""" #???????????????????????????? | | #??????????#""""" #???????????????????????????? | | #??????????#""""" #?? ????????????????????????? | | #??????????#"%""" #?? ????????????????????????? | | #####??????#""%" #?? ????????????????????????? | | # #????###""" ##? ""??????????????????????? | | # #??## #""" ##? ""??????????????????????? | | # #??# # == = ##? ""?????? ?????????????? | | ## ############/##"#?? ????? ??????????????? | | % % % ###?? ???? k#???????????????? | | % % %#"#??##+#### #???????????????? | | #????# T #???????????????? | | ###+############ #? ??# #???????????????? | | #?? %# # # ??+ #???????????????? | | """ """ #?# ??# # ??#@ #???????????????? | | """ """ ######## # # """ #???????????????? | | """ """ # !###### %%"" #???????????????? | | """ """ # * %###### """* #???????????????? | | # ^^* ! """ #?????????????? | | # * [ ######% /! #?????????????? | | # * [ # #?# % #?????????????? | | ######### # #?# ########?????????????? | | ######### # #?# #????????????????????? | | ###??# % #????????????????????? | | = #????# g#????????????????????? | | #????# g #????????????????????? | | ## ##### ##????# +????????????????????? | | ## #####+###???? #????????????????????? | | # # #???? a#????????????????????? | | + ! + ! [[ #???? #????????????????????? | | # ! # [* #???? #????????????????????? | | # #########???? #????????????????????? | | # [ #???????????? #????????????????????? | | #* ########???????????? ?????????????????????? | | # ##??????????????????????????????????????????? | | # #??????????????????????????????????????????? | | ## ##??????????????????????????????????????????? | | ## #???????????????????????????????????????????? | | ?# #???????????????????????????????????????????? | +----------------------------------------------------+ Best States ------------- Heat Dissipation 31 Energy Generation 14 Energy Capacity 280 Matter Stores 300 Matter Capacity 300 Sight Range 16 Terrain Scan Density 10 Armor Coverage 300 Resistance: KI 20 Evasion (%) 40 Targeting Accuracy 8 Recoil Reduction 4 Item Schematics ----------------- None Robot Schematics ------------------ None Fabricated ------------ Nothing Repaired ---------- Nothing Alien Tech Used ----------------- None Achievements -------------- None Challenges ------------ None Game ------ Seed ResetSpliceFirepult Manual? 0 Play Time 00:28:43 Cumulative 59.7 hours Start 2025.05.25 @ 21:27:34 End 2025.05.26 @ 20:05:17 Sessions 4 Manual Loads 0 Difficulty Rogue Special Mode None Game No. 42 Rogue 42 Adventurer 0 Explorer 0 Win Type - Total 5 Types 2/0/1/0/1/0/0/0/0/1 Lore% 51 Gallery% 48 Achievement% 53 Wizard Run 0 Options --------- Layout 0 ASCII 0 Keyboard 1 Movement Vi Keybinds 0 Fullscreen 2 Font 18/SmallcapsGlow Map View 76x50 Zoom Use 0% Tactical HUD 1 Map Filters NONE Filters NONE Steam 1 RUN: 152179d0-0595-4acd-98c0-43158f3fe110